fUSD/lending_fUSD_20260327
["ID","MTS","AMOUNT","RATE_DAILY","PERIOD"]
[418957676,1774653044973,-1095.88,0.00015999,2]
[418957677,1774653044982,-1095.88,0.00015999,2]
[418957678,1774653044992,-1095.88,0.00015999,2]
[418957679,1774653045001,-1095.88,0.00015999,2]
[418957680,1774653045011,-1095.88,0.00015999,2]
[418957681,1774653045020,-1095.88,0.00015999,2]
[418957682,1774653045030,-1095.88,0.00015999,2]
[418957683,1774653045039,-1095.88,0.00015999,2]
[418957684,1774653045049,-1095.9,0.00015999,2]
[418957685,1774653045059,-500.0,0.00015999,2]
[418957686,1774653045068,-500.0,0.00015999,2]
[418957687,1774653045078,-500.0,0.00015999,2]
[418957688,1774653045087,-500.0,0.00015999,2]
[418957689,1774653045096,-500.0,0.00015999,2]
[418957690,1774653045106,-175.12373659,0.00015999,2]
[418957691,1774653045115,-619.54,0.00015999,2]
[418957692,1774653045125,-619.54,0.00015999,2]
[418957693,1774653045134,-619.54,0.00015999,2]
[418957694,1774653045144,-619.54,0.00015999,2]
[418957695,1774653045153,-619.54,0.00015999,2]
[418957696,1774653045162,-619.54,0.00015999,2]
[418957697,1774653045171,-619.54,0.00015999,2]
[418957698,1774653045180,-619.54,0.00015999,2]
[418957699,1774653045190,-619.69829048,0.00015999,2]
[418957700,1774653045199,-500.0,0.00015999,2]
[418957701,1774653045208,-500.0,0.00015999,2]
[418957702,1774653045217,-500.0,0.00015999,2]
[418957703,1774653045226,-500.0,0.00015999,2]
[418957704,1774653045236,-500.0,0.00015999,2]
[418957705,1774653045245,-583.38738311,0.00015999,2]
[418957706,1774653045254,-500.0,0.00015999,2]
[418957707,1774653045264,-500.0,0.00015999,2]
[418957708,1774653045273,-500.0,0.00015999,2]
[418957709,1774653045282,-500.0,0.00015999,2]
[418957710,1774653045292,-500.0,0.00015999,2]
[418957711,1774653045301,-606.40062837,0.00015999,2]
[418957712,1774653045311,-1752.0,0.00016,5]
[418957713,1774653045320,-818900.74651558,0.00016,2]
[418957714,1774653045330,-1201529.85309778,0.00016,2]
[418957715,1774653045356,-1561.18690722,0.00016,2]
[418957716,1774653045368,-4779.76509798,0.00016,2]
[418957743,1774653045988,-379.46910639,0.00016,2]
[418957746,1774653046004,-477.11797362,0.00016,2]
[418957748,1774653046015,-2784.03994496,0.00016,2]
[418957751,1774653046026,-420.81679979,0.00016,2]
[418957753,1774653046038,-412.76453333,0.00016,2]
[418957756,1774653046053,-605836.66876483,0.00016,2]
[418957757,1774653046062,-617.79720442,0.00016,2]
[418957759,1774653046071,-460146.92382532,0.00016,2]
[418957764,1774653046101,-43173.89217123,0.00016,2]
[418957766,1774653046112,-97541.87683908,0.00016,2]
[418957773,1774653046210,-181333.38578277,0.00016,2]
[418957774,1774653046222,-20820.0646233,0.00016,2]
[418957775,1774653046236,-1067.6817414,0.00016,2]
[418957776,1774653046248,-534.26111805,0.00016,2]
[418957777,1774653046361,-387.4628535,0.0001568,2]
[418957778,1774653046371,-188.48025561,0.00016,2]
[418957780,1774653046393,-188.20527435,0.00015999,2]
[418957782,1774653046401,-83826.51186093,0.00016,2]
[418957784,1774653046412,-600.0,0.00016,2]
[418957786,1774653046427,-1052.80623433,0.00016,2]
[418957858,1774653128163,6197.443342,7.945e-05,2]
[418957860,1774653601651,4191.16,6.909e-05,2]
[418957861,1774653602207,4191.16,7.273e-05,2]
[418957862,1774653602285,4191.16,7.636e-05,2]
[418957863,1774653602509,4191.16,8e-05,2]
[418957864,1774653602712,4191.16,8.364e-05,2]
[418957865,1774653602926,4191.16,8.727e-05,2]
[418957883,1774653775558,174.56,0.0002,30]
[418957889,1774653941101,-373.48838366,9.091e-05,2]
[418957890,1774654027078,-3817.67161634,9.091e-05,2]
[418957891,1774654027099,-250.0,9.272e-05,2]
[418957892,1774654027120,-1200.0,9.454e-05,2]
[418957893,1774654027142,-4191.16,9.455e-05,2]
[418957894,1774654027164,-300.0,9.816e-05,2]
[418957895,1774654027185,-300.0,9.817e-05,2]
[418957896,1774654027206,-4191.16,9.818e-05,2]
[418957897,1774654027228,-250.0,0.0001,2]
[418957898,1774654027251,-4191.16,0.00010182,2]
[418957899,1774654027275,-571.54276257,0.0001025,2]
[418957900,1774654027298,-66.35292806,0.0001025,2]
[418957901,1774654064070,336.85,8.5e-05,2]
[418957903,1774654153122,-231.81,9.856e-05,2]
[418957904,1774654153155,-502.55907788,0.0001025,2]
[418957905,1774654153183,-1680.0,0.00010399,2]
[418957906,1774654153210,-150.0,0.000104,2]
[418957907,1774654153237,-4191.16,0.00010545,2]
[418957908,1774654153265,-3474.66446212,0.00010909,2]
[418957909,1774654161117,-716.49553788,0.00010909,2]
[418957910,1774654161142,-4191.16,0.00011273,2]
[418957911,1774654161166,-2351.0,0.00011439,2]
[418957912,1774654161190,-497.87,0.00011507,2]
[418957913,1774654161212,-250.0,0.00011602,2]
[418957914,1774654161236,-4191.16,0.00011636,2]
[418957915,1774654161261,-166.66,0.00011967,2]
[418957916,1774654161285,-4191.16,0.00012,2]
[418957917,1774654161309,-166.66,0.00012219,2]
[418957918,1774654161334,-4191.16,0.00012364,2]
[418957919,1774654161359,-150.0,0.00012378,2]
[418957920,1774654161382,-252.699828,0.0001238,2]
[418957921,1774654161406,-150.0,0.0001238,2]
[418957922,1774654161429,-166.66,0.00012471,2]
[418957923,1774654161453,-892.0,0.00012583,2]
[418957924,1774654161475,-600.0,0.00012625,2]
[418957925,1774654161498,-421.35,0.0001267,2]
[418957926,1774654161521,-200.0,0.0001271,2]
[418957927,1774654161544,-500.0,0.0001271,2]
[418957928,1774654161567,-500.0,0.0001271,2]
[418957929,1774654161590,-500.0,0.0001271,2]
[418957930,1774654161613,-500.0,0.0001271,2]
[418957931,1774654161636,-500.0,0.0001271,2]
[418957932,1774654161660,-500.0,0.0001271,2]
[418957933,1774654161683,-500.0,0.0001271,2]
[418957934,1774654161707,-151.0,0.0001271,2]
[418957935,1774654161731,-500.0,0.0001271,2]
[418957936,1774654161755,-151.0,0.0001271,2]
[418957937,1774654161779,-500.0,0.0001271,2]
[418957938,1774654161803,-151.0,0.0001271,2]
[418957939,1774654161827,-500.0,0.0001271,2]
[418957940,1774654161852,-151.0,0.0001271,2]
[418957941,1774654161875,-151.0,0.0001271,2]
[418957942,1774654161899,-295.08421293,0.0001271,2]
[418957943,1774654162141,-204.91578707,0.0001271,2]
[418957944,1774654162169,-151.0,0.0001271,2]
[418957945,1774654162192,-151.0,0.0001271,2]
[418957946,1774654162215,-151.0,0.0001271,2]
[418957947,1774654162240,-500.0,0.0001271,2]
[418957948,1774654162264,-151.0,0.0001271,2]
[418957949,1774654162288,-151.0,0.0001271,2]
[418957950,1774654162311,-151.0,0.0001271,2]
[418957951,1774654162337,-151.0,0.0001271,2]
[418957952,1774654162361,-151.0,0.0001271,2]
[418957953,1774654162384,-500.0,0.0001271,2]
[418957954,1774654162407,-151.0,0.0001271,2]
[418957955,1774654162431,-151.0,0.0001271,2]
[418957956,1774654162454,-500.0,0.0001271,2]
[418957957,1774654162477,-151.0,0.0001271,2]
[418957958,1774654162500,-500.0,0.0001271,2]
[418957959,1774654162524,-151.0,0.0001271,2]
[418957960,1774654162547,-151.0,0.0001271,2]
[418957961,1774654162572,-500.0,0.0001271,2]
[418957962,1774654162595,-246.12567273,0.0001271,2]
[418957963,1774654162618,-500.0,0.0001271,2]
[418957964,1774654162641,-500.0,0.0001271,2]
[418957965,1774654162664,-500.0,0.0001271,2]
[418957966,1774654162687,-500.0,0.0001271,2]
[418957967,1774654162711,-151.0,0.0001271,2]
[418957968,1774654162735,-107.0998102,0.0001271,2]
[418957969,1774654171083,-392.9001898,0.0001271,2]
[418957970,1774654171105,-500.0,0.0001271,2]
[418957971,1774654171126,-500.0,0.0001271,2]
[418957972,1774654171148,-500.0,0.0001271,2]
[418957973,1774654171169,-14839.21960985,0.00012717,2]
[418957979,1774654232028,-200.0,0.000127,2]
[418957980,1774654232037,-19713.26722644,0.00012717,2]
[418957981,1774654232046,-166.34,0.00012718,2]
[418957982,1774654232055,-166.66,0.00012723,2]
[418957983,1774654232064,-4191.16,0.00012727,2]
[418957984,1774654232073,-166.66,0.00012975,2]
[418957985,1774654232083,-250.0,0.00013,2]
[418957986,1774654232092,-150.1563,0.00013,2]
[418957987,1774654232102,-4191.16,0.00013091,2]
[418957988,1774654232112,-166.66,0.00013227,2]
[418957989,1774654232122,-200.0,0.00013258,2]
[418957990,1774654232131,-4191.16,0.00013455,2]
[418957991,1774654232140,-200.0,0.00013699,2]
[418957992,1774654232151,-200.0,0.00013806,2]
[418957993,1774654232161,-4191.16,0.00013818,2]
[418957994,1774654232172,-2000.0,0.00013862,2]
[418957995,1774654232183,-200.0,0.00014354,2]
[418957996,1774654232192,-1391.8096667,0.000144,2]
[418957997,1774654232201,-150.0,0.00014408,2]
[418957998,1774654232210,-471.47359939,0.00014409,2]
[418957999,1774654232219,-589.3589423,0.00014409,2]
[418958000,1774654232228,-31428.15966949,0.00014409,2]
[418958001,1774654232237,-3586.19405456,0.00014409,2]
[418958002,1774654232246,-1932.3914,0.00014493,2]
[418958003,1774654232255,-1137.84,0.000145,2]
[418958004,1774654232264,-500.0,0.00014503,2]
[418958005,1774654232274,-500.0,0.00014503,2]
[418958006,1774654232283,-500.0,0.00014503,2]
[418958007,1774654232292,-500.0,0.00014503,2]
[418958008,1774654232301,-500.0,0.00014503,2]
[418958009,1774654232311,-500.0,0.00014503,2]
[418958010,1774654232320,-500.0,0.00014503,2]
[418958011,1774654232329,-500.0,0.00014503,2]
[418958012,1774654232338,-500.0,0.00014503,2]
[418958013,1774654232348,-500.0,0.00014503,2]
[418958014,1774654232357,-500.0,0.00014503,2]
[418958015,1774654232367,-500.0,0.00014503,2]
[418958016,1774654232376,-500.0,0.00014503,2]
[418958017,1774654232385,-500.0,0.00014503,2]
[418958018,1774654232394,-500.0,0.00014503,2]
[418958019,1774654232403,-500.0,0.00014503,2]
[418958020,1774654232412,-500.0,0.00014503,2]
[418958021,1774654232422,-500.0,0.00014503,2]
[418958022,1774654232431,-500.0,0.00014503,2]
[418958023,1774654232440,-500.0,0.00014503,2]
[418958024,1774654232450,-500.0,0.00014503,2]
[418958025,1774654232459,-500.0,0.00014503,2]
[418958026,1774654232468,-500.0,0.00014503,2]
[418958027,1774654232476,-500.0,0.00014503,2]
[418958028,1774654232486,-500.0,0.00014503,2]
[418958029,1774654232495,-500.0,0.00014503,2]
[418958030,1774654232504,-500.0,0.00014503,2]
[418958031,1774654232513,-500.0,0.00014503,2]
[418958032,1774654232522,-500.0,0.00014503,2]
[418958033,1774654232531,-500.0,0.00014503,2]
[418958034,1774654232540,-500.0,0.00014503,2]
[418958035,1774654232549,-500.0,0.00014503,2]
[418958036,1774654232559,-500.0,0.00014503,2]
[418958037,1774654232568,-500.0,0.00014503,2]
[418958038,1774654232578,-500.0,0.00014503,2]
[418958039,1774654232587,-500.0,0.00014503,2]
[418958040,1774654232597,-500.0,0.00014503,2]
[418958041,1774654232606,-500.0,0.00014503,2]
[418958042,1774654232615,-500.0,0.00014503,2]
[418958043,1774654232624,-500.0,0.00014503,2]
[418958044,1774654232633,-500.0,0.00014503,2]
[418958045,1774654232643,-500.0,0.00014503,2]
[418958046,1774654232652,-500.0,0.00014503,2]
[418958047,1774654232661,-233.92491282,0.00014503,2]
[418958048,1774654232670,-500.0,0.00014503,2]
[418958049,1774654232828,-500.0,0.00014503,2]
[418958050,1774654232841,-500.0,0.00014503,2]
[418958051,1774654232851,-500.0,0.00014503,2]
[418958052,1774654232860,-500.0,0.00014503,2]
[418958053,1774654232870,-1158.31764894,0.00014503,2]
[418958054,1774654232879,-1158.31764894,0.00014503,2]
[418958055,1774654232889,-1158.31764894,0.00014503,2]
[418958056,1774654232898,-1158.31764894,0.00014503,2]
[418958057,1774654232907,-1158.31764894,0.00014503,2]
[418958058,1774654232916,-1158.31764894,0.00014503,2]
[418958059,1774654232925,-1158.31764894,0.00014503,2]
[418958060,1774654232934,-1158.31764894,0.00014503,2]
[418958061,1774654232943,-1158.31764894,0.00014503,2]
[418958062,1774654232952,-1158.31764894,0.00014503,2]
[418958063,1774654232961,-1158.31764894,0.00014503,2]
[418958064,1774654232971,-1158.31764894,0.00014503,2]
[418958065,1774654232980,-993.08697145,0.00014503,2]
[418958066,1774654232993,-165.23067749,0.00014503,2]
[418958067,1774654233002,-1158.31764894,0.00014503,2]
[418958068,1774654233011,-1158.31764894,0.00014503,2]
[418958069,1774654233020,-1158.31764894,0.00014503,2]
[418958070,1774654233029,-1158.31764894,0.00014503,2]
[418958071,1774654233038,-1158.31764894,0.00014503,2]
[418958072,1774654233047,-1158.31764894,0.00014503,2]
[418958073,1774654233056,-1087.28372887,0.00014503,2]
[418958074,1774654233068,-71.03392007,0.00014503,2]
[418958075,1774654233077,-1014.80862691,0.00014503,2]
[418958076,1774654233096,-143.50902203,0.00014503,2]
[418958077,1774654233105,-1158.31764894,0.00014503,2]
[418958078,1774654233114,-1158.31764894,0.00014503,2]
[418958079,1774654233124,-1158.31764894,0.00014503,2]
[418958080,1774654233133,-564.08899652,0.00014503,2]
[418958081,1774654233148,-594.22865242,0.00014503,2]
[418958082,1774654233158,-1158.31764894,0.00014503,2]
[418958083,1774654233171,-1158.31764894,0.00014503,2]
[418958084,1774654233180,-1158.31764894,0.00014503,2]
[418958085,1774654233189,-1158.31764894,0.00014503,2]
[418958086,1774654233199,-1158.31764894,0.00014503,2]
[418958087,1774654233208,-1167.97029603,0.00014503,2]
[418958088,1774654233217,-1167.97029603,0.00014503,2]
[418958089,1774654233227,-1167.97029603,0.00014503,2]
[418958090,1774654233236,-1167.97029603,0.00014503,2]
[418958091,1774654233246,-1167.97029603,0.00014503,2]
[418958092,1774654233255,-1167.97029603,0.00014503,2]
[418958093,1774654233264,-1167.97029603,0.00014503,2]
[418958094,1774654233274,-1167.97029603,0.00014503,2]
[418958095,1774654233283,-1167.97029603,0.00014503,2]
[418958096,1774654233293,-1209.56,0.00014504,2]
[418958097,1774654233302,-299.99,0.00014504,2]
[418958098,1774654233311,-150.99,0.00014504,2]
[418958099,1774654233321,-159.52,0.00014504,2]
[418958100,1774654233330,-9999.99,0.00014504,2]
[418958101,1774654233339,-545.87069986,0.00014508,2]
[418958102,1774654233348,-500.0,0.00014508,2]
[418958103,1774654233358,-543.25840902,0.00014508,2]
[418958104,1774654233367,-1000.0,0.00014509,2]
[418958105,1774654233376,-32994.9848,0.00014509,2]
[418958106,1774654233385,-3096.44062227,0.00014572,2]
[418958107,1774654234377,-887.88486406,0.00014572,2]
[418958108,1774654234386,-500.0,0.00014573,2]
[418958109,1774654234397,-500.0,0.00014573,2]
[418958110,1774654234406,-500.0,0.00014573,2]
[418958111,1774654234415,-500.0,0.00014573,2]
[418958112,1774654234424,-500.0,0.00014573,2]
[418958113,1774654234433,-500.0,0.00014573,2]
[418958114,1774654234443,-245.47044032,0.00014573,2]
[418958115,1774654234454,-254.52955968,0.00014573,2]
[418958116,1774654234463,-3991.58641147,0.00014575,2]
[418958117,1774654234474,-5754.48055638,0.00014575,2]
[418958118,1774654234485,-1037.25,0.00014575,2]
[418958120,1774654238093,-1897.34812686,0.00014575,2]
[418958121,1774654238165,-3239.94984,0.00014575,2]
[418958122,1774654238178,-1553.52,0.00014575,2]
[418958123,1774654238190,-13954.02473475,0.00014575,2]
[418958124,1774654238200,-3106.15,0.000146,2]
[418958125,1774654238209,-2705.4,0.000146,2]
[418958126,1774654238218,-1893.7,0.000146,2]
[418958127,1774654238228,-511.71,0.00014608,2]
[418958128,1774654238237,-500.0,0.000147,5]
[418958129,1774654238246,-3984.32548633,0.00014738,2]
[418958130,1774654238255,-19901.78183349,0.0001474,2]
[418958131,1774654238274,-11526.37783597,0.0001474,2]
[418958132,1774654238283,-1137.84,0.00014774,2]
[418958133,1774654238292,-500.0,0.00014777,2]
[418958134,1774654238302,-1000.0,0.000148,5]
[418958135,1774654238311,-168.0,0.0001482,2]
[418958136,1774654238320,-168.0,0.00014831,2]
[418958137,1774654238329,-1600.0,0.000149,5]
[418958138,1774654238338,-200.0,0.00014902,2]
[418958139,1774654238347,-3984.32548633,0.00014904,2]
[418958140,1774654238357,-31428.15966946,0.00014906,2]
[418958141,1774654238365,-168.0,0.00014913,2]
[418958142,1774654238375,-168.0,0.00014939,2]
[418958143,1774654238384,-168.0,0.00014955,2]
[418958144,1774654238393,-168.0,0.00014997,2]
[418958145,1774654238402,-26797.26570733,0.00015,2]
[418958146,1774654238411,-1137.84,0.00015048,2]
[418958147,1774654238420,-500.0,0.00015051,2]
[418958148,1774654238429,-3984.32548633,0.0001507,2]
[418958149,1774654238439,-31428.15966946,0.00015072,2]
[418958150,1774654238448,-217.58086681,0.00015073,2]
[418958151,1774654238458,-500.0,0.00015073,2]
[418958152,1774654238467,-500.0,0.00015073,2]
[418958153,1774654238475,-500.0,0.00015073,2]
[418958154,1774654238484,-500.0,0.00015073,2]
[418958155,1774654238495,-500.0,0.00015073,2]
[418958156,1774654238504,-500.0,0.00015073,2]
[418958157,1774654238514,-500.0,0.00015073,2]
[418958159,1774654238523,-500.0,0.00015073,2]
[418958161,1774654238532,-500.0,0.00015073,2]
[418958163,1774654238541,-500.0,0.00015073,2]
[418958165,1774654238551,-357.55340388,0.00015073,2]
[418958166,1774654238560,-500.0,0.00015073,2]
[418958168,1774654238569,-500.0,0.00015073,2]
[418958170,1774654238579,-500.0,0.00015073,2]
[418958172,1774654238589,-500.0,0.00015073,2]
[418958174,1774654238598,-500.0,0.00015073,2]
[418958176,1774654238607,-500.0,0.00015073,2]
[418958177,1774654238616,-500.0,0.00015073,2]
[418958179,1774654238626,-500.0,0.00015073,2]
[418958181,1774654238636,-105705.36,0.0001509,2]
[418958183,1774654238645,-312.874878,0.00015095,7]
[418958185,1774654238654,-3256.0,0.00015145,2]
[418958187,1774654238664,-589.35894228,0.00015155,2]
[418958189,1774654238673,-168.0,0.00015179,2]
[418958190,1774654238682,-168.0,0.00015193,2]
[418958192,1774654238691,-7909.42812096,0.00015196,2]
[418958194,1774654238700,-174.61919141,0.00015196,2]
[418958196,1774654238709,-743.50770149,0.00015196,2]
[418958198,1774654238718,-351.96292342,0.000152,2]
[418958200,1774654238727,-500.0,0.00015225,2]
[418958202,1774654238736,-500.0,0.00015225,2]
[418958203,1774654238745,-500.0,0.00015225,2]
[418958205,1774654238755,-649.2,0.00015225,2]
[418958207,1774654238765,-500.0,0.00015225,2]
[418958209,1774654238774,-500.0,0.00015225,2]
[418958211,1774654238783,-500.0,0.00015225,2]
[418958213,1774654238792,-500.0,0.00015225,2]
[418958215,1774654238801,-3984.32548633,0.00015236,2]
[418958216,1774654238811,-1598.0,0.00015237,2]
[418958218,1774654238820,-31428.15966946,0.00015237,2]
[418958220,1774654238829,-168.0,0.00015276,2]
[418958222,1774654238838,-168.0,0.00015285,2]
[418958224,1774654238847,-1137.84,0.00015322,2]
[418958226,1774654238857,-500.0,0.00015325,2]
[418958228,1774654238866,-1587.0,0.00015345,2]
[418958230,1774654238874,-171.303049,0.0001536,2]
[418958231,1774654238884,-784.52,0.00015368,2]
[418958233,1774654238893,-3984.32548633,0.00015402,2]
[418958235,1774654238902,-31428.15966946,0.00015403,2]
[418958237,1774654238911,-2875.0,0.00015433,2]
[418958239,1774654238921,-200.0,0.0001545,2]
[418958241,1774654238930,-4453.0,0.00015493,2]
[418958243,1774654238939,-255.0,0.00015532,2]
[418958245,1774654238949,-168.471088,0.00015542,7]
[418958247,1774654238958,-3984.32548633,0.00015568,2]
[418958249,1774654238968,-1750.0,0.00015568,2]
[418958251,1774654238977,-31428.15966946,0.00015569,2]
[418958253,1774654238986,-880.32,0.00015585,2]
[418958254,1774654238996,-2000.0,0.00015595,2]
[418958256,1774654239005,-1137.84,0.00015596,2]
[418958258,1774654239015,-500.0,0.00015599,2]
[418958260,1774654239024,-150.3129,0.000156,2]
[418958262,1774654239033,-2100.0,0.000156,5]
[418958264,1774654239042,-1000.0,0.00015621,2]
[418958266,1774654239050,-1000.0,0.00015621,2]
[418958267,1774654239060,-857.07724859,0.00015621,2]
[418958269,1774654239070,-612.19650717,0.00015621,2]
[418958271,1774654239079,-1000.0,0.00015621,2]
[418958273,1774654239088,-1000.0,0.00015621,2]
[418958275,1774654239097,-1000.0,0.00015621,2]
[418958276,1774654239106,-500.0,0.00015621,2]
[418958278,1774654239115,-1000.0,0.00015621,2]
[418958280,1774654239124,-407.10183435,0.00015621,2]
[418958282,1774654239133,-1000.0,0.00015621,2]
[418958284,1774654239142,-341.83590055,0.00015621,2]
[418958286,1774654239152,-1008.54197782,0.00015621,2]
[418958288,1774654239161,-500.0,0.00015621,2]
[418958289,1774654239171,-412.99392051,0.00015621,2]
[418958291,1774654239180,-1005.39432311,0.00015621,2]
[418958293,1774654239189,-1023.0,0.00015633,2]
[418958295,1774654239198,-784.52,0.00015642,2]
[418958297,1774654239207,-238.308569,0.0001568,2]
[418958299,1774654239216,-2700.0,0.000157,5]
[418958301,1774654239226,-3984.32548633,0.00015734,2]
[418958303,1774654239235,-31428.15966946,0.00015734,2]
[418958305,1774654239244,-282.95657043,0.00015744,2]
[418958307,1774654239252,-1262.0,0.00015769,2]
[418958309,1774654239261,-150.0,0.00015769,2]
[418958311,1774654239270,-1216.0,0.00015769,2]
[418958312,1774654239279,-924.0,0.00015769,2]
[418958314,1774654239289,-621.0,0.00015769,2]
[418958316,1774654239298,-710.0,0.00015781,2]
[418958318,1774654239307,-375.0,0.00015781,2]
[418958320,1774654239316,-1032.0,0.00015788,2]
[418958321,1774654239325,-500.0,0.000158,5]
[418958322,1774654239334,-443.98726,0.0001584,2]
[418958323,1774654239470,-443.98726,0.0001584,2]
[418958324,1774654239479,-443.98727,0.0001584,2]
[418958325,1774654239489,-1733.499,0.00015851,2]
[418958326,1774654239498,-880.32,0.00015859,2]
[418958327,1774654239507,-1137.84,0.0001587,2]
[418958328,1774654239517,-500.0,0.00015871,2]
[418958329,1774654239526,-500.0,0.00015872,2]
[418958330,1774654239535,-200.0,0.00015872,2]
[418958331,1774654239544,-500.0,0.00015873,2]
[418958332,1774654239553,-2000.0,0.0001589,2]
[418958333,1774654239562,-2235.0,0.00015897,5]
[418958334,1774654239571,-1786.0,0.00015897,5]
[418958335,1774654239580,-1456.0,0.00015899,2]
[418958336,1774654239589,-10000.0,0.000159,2]
[418958337,1774654239599,-3984.32548633,0.000159,2]
[418958338,1774654239610,-589.35894228,0.000159,2]
[418958339,1774654239619,-500.0,0.000159,5]
[418958340,1774654239628,-31428.15966946,0.000159,2]
[418958341,1774654239638,-660.0,0.000159,2]
[418958342,1774654239647,-784.52,0.00015916,2]
[418958343,1774654239656,-235.0,0.0001593,2]
[418958344,1774654239666,-280.39218742,0.0001599,2]
[418958345,1774654239675,-151.0,0.00015997,2]
[418958346,1774654239684,-263333.82571008,0.00016,2]
[418958347,1774654239841,-1109.46875634,0.00016,2]
[418958348,1774654239852,-25150.36476742,0.00016,2]
[418958349,1774654239864,-1159.41324796,0.00016,2]
[418958350,1774654241089,-1360.95947265,0.00015769,2]
[418958351,1774654241197,-2155.04052735,0.00015769,2]
[418958353,1774654241206,-225694.64147276,0.00016,2]
[418958355,1774654241216,-29979.81843515,0.00016,2]
[418958380,1774654243644,-18908.67514547,0.00016,2]
[418958532,1774654246336,-646.0500007,0.00016,2]
[418958533,1774654246591,-1984.99999996,0.00016,2]
[418958536,1774654328130,6973.676367,7.945e-05,2]
[418958538,1774654371739,374.64,7.642e-05,2]
[418958539,1774654386347,164.0,7.642e-05,3]
[418958549,1774654872734,265.22,0.0002,30]
[418958550,1774654873530,211.09821109,0.0002,30]
[418958551,1774655021964,165.0,6.865e-05,2]
[418958553,1774655165634,468.92,6.504e-05,2]
[418958554,1774655166139,313.12,7.111e-05,2]
[418958555,1774655166690,580.71,7.621e-05,2]
[418958567,1774655355167,-250.0,0.00012425,2]
[418958568,1774655355189,-1995.46452991,0.00012425,2]
[418958569,1774655355212,-300.0,0.00012425,2]
[418958570,1774655355235,-1119.32119582,0.00012666,2]
[418958571,1774655355257,-539.0,0.00013111,2]
[418958572,1774655355279,-151.0,0.00013415,2]
[418958573,1774655355301,-300.0,0.00013498,2]
[418958574,1774655355323,-300.0,0.00013498,2]
[418958575,1774655355344,-1255.65021845,0.00013499,2]
[418958576,1774655362089,-8233.95457724,0.00013499,2]
[418958579,1774655435357,-151.0,0.00013397,2]
[418958580,1774655435367,-318.0,0.00013397,2]
[418958581,1774655435377,-151.0,0.00013425,2]
[418958582,1774655435386,-505.92514299,0.00013487,2]
[418958583,1774655435395,-4449.79830289,0.00013499,2]
[418958584,1774655435445,-1770.0,0.00013499,2]
[418958585,1774655435457,-356.42690142,0.00013499,2]
[418958586,1774655435467,-329.43942671,0.00013599,2]
[418958587,1774655435479,-870.56057329,0.00013599,2]
[418958588,1774655435488,-101.16096258,0.00013599,2]
[418958589,1774655435499,-198.83903742,0.00013599,2]
[418958590,1774655435508,-782.63936159,0.000136,2]
[418958591,1774655435520,-523.48447467,0.000136,2]
[418958592,1774655435551,-1717.03856977,0.000136,2]
[418958593,1774655435638,-4158.83759397,0.000136,2]
[418958594,1774655435648,-250.0,0.00013667,2]
[418958595,1774655435658,-1439.48,0.00013699,2]
[418958596,1774655435667,-3240.0,0.00013939,2]
[418958597,1774655435677,-460.0,0.00013946,2]
[418958598,1774655435686,-487.0,0.00013974,2]
[418958599,1774655435696,-478.0,0.00014002,2]
[418958600,1774655435706,-228.0,0.00014002,2]
[418958601,1774655435715,-269.0,0.00014018,2]
[418958602,1774655435724,-285.0,0.00014029,2]
[418958603,1774655435734,-488.83,0.00014042,2]
[418958604,1774655435743,-373.0,0.00014044,2]
[418958606,1774655435753,-1982.0,0.00014046,2]